fUST/lending_fUST_20241124
["ID","MTS","AMOUNT","RATE_DAILY","PERIOD"]
[343165522,1732391444999,-151.0,0.0002824,7]
[343165523,1732391445008,-151.0,0.0002824,7]
[343165524,1732391445018,-151.0,0.0002824,7]
[343165525,1732391445027,-151.0,0.0002824,7]
[343165526,1732391445037,-151.0,0.0002824,7]
[343165527,1732391445047,-151.0,0.0002824,7]
[343165528,1732391445056,-151.0,0.0002824,7]
[343165529,1732391445065,-151.0,0.0002824,7]
[343165530,1732391445074,-151.0,0.0002824,7]
[343165531,1732391445083,-151.0,0.0002824,7]
[343165532,1732391445092,-204.560532,0.0002824,7]
[343165533,1732391445102,-855760.58020705,0.00028241,10]
[343165534,1732391445124,-184.50378325,0.00028241,10]
[343165535,1732391445136,-340.34728142,0.00028241,10]
[343165539,1732391446438,-716.83868397,0.00028241,10]
[343165540,1732391446454,-3417.2,0.00028241,10]
[343165541,1732391446466,-20109.28990042,0.00028241,10]
[343165555,1732392028554,1438.52963253,0.00028805,120]
[343165573,1732392558151,-160.561271,0.0001251,2]
[343165574,1732392558176,-160.561271,0.00013973,2]
[343165575,1732392558200,-160.561271,0.00020807,2]
[343165576,1732392558484,144.15991691,0.00012385,2]
[343165598,1732392632151,-16.40135409,0.00012385,2]
[343165599,1732392632161,-500.0,0.00024981,7]
[343165600,1732392632171,-165.07327,0.00025272,2]
[343165601,1732392632182,-300.0,0.00025312,2]
[343165602,1732392632191,-151.65221677,0.00025313,2]
[343165603,1732392632204,-10081.33691333,0.00025313,2]
[343165604,1732392632213,-227.031299,0.00025418,2]
[343165605,1732392632223,-395.911485,0.00025514,2]
[343165606,1732392632232,-162.1006256,0.00025664,2]
[343165607,1732392632243,-227.031299,0.00026103,2]
[343165608,1732392632252,-500.0,0.00026625,7]
[343165609,1732392632262,-227.031299,0.00026788,2]
[343165610,1732392632272,-530.0,0.00027416,2]
[343165611,1732392632281,-1290.624,0.00027416,2]
[343165612,1732392632291,-160.561271,0.00027641,2]
[343165613,1732392632301,-581.03,0.000281,2]
[343165614,1732392632311,-330.0,0.00028141,2]
[343165615,1732392632321,-500.0,0.00028141,2]
[343165616,1732392632330,-918.4,0.00028141,2]
[343165617,1732392632340,-868.10236613,0.00028232,10]
[343165618,1732392632455,-541.86763387,0.00028232,10]
[343165619,1732392632465,-1174.97,0.00028232,10]
[343165620,1732392632474,-500.0,0.00028239,2]
[343165621,1732392632484,-210.24983997,0.00028241,2]
[343165622,1732392632493,-3199.615426,0.00028242,10]
[343165640,1732392638198,-370.10878741,0.00028232,10]
[343165641,1732392638210,-423.88913304,0.00028232,10]
[343165642,1732392638303,-185.14207955,0.00028232,10]
[343165643,1732392638313,-500.0,0.00028241,2]
[343165644,1732392638322,-2672.4482662,0.00028242,10]
[343165645,1732392638357,-1550.7470573,0.00028242,10]
[343165651,1732392640127,-1066.73883254,0.00027959,2]
[343165652,1732392640182,-307.22,0.00027959,2]
[343165672,1732392643225,-3398.76670594,0.00027959,2]
[343165694,1732392646326,-440.79471829,0.00027959,2]
[343165695,1732392646337,-500.0,0.00028141,2]
[343165696,1732392646348,-10752.60108198,0.00028242,10]
[343165697,1732392665605,791.77490001,0.00026939,30]
[343165750,1732393756174,-185.353074,0.00013023,2]
[343165751,1732393756196,-185.353074,0.00013155,2]
[343165752,1732393756218,-185.353074,0.00013973,2]
[343165753,1732393756238,-185.353074,0.00020447,2]
[343165754,1732393756264,-5722.52956032,0.00021,5]
[343165755,1732393756284,-300.0,0.00021462,2]
[343165756,1732393756306,-300.0,0.00021462,2]
[343165757,1732393756328,-23236.61228417,0.00021463,2]
[343165808,1732393832527,-166.817766,0.00013973,2]
[343165809,1732393832537,-166.817766,0.00020447,2]
[343165810,1732393832552,-1318.64095654,0.00021248,2]
[343165811,1732393832561,-248.70827756,0.00021463,2]
[343165812,1732393832575,-1414.67943827,0.00021463,2]
[343165813,1732393832585,-164.845747,0.00021815,2]
[343165814,1732393832595,-300.0,0.00022028,2]
[343165815,1732393832604,-300.0,0.00022028,2]
[343165816,1732393832614,-7728.0435744,0.00022029,2]
[343165817,1732393832624,-197.955742,0.00022049,2]
[343165818,1732393832633,-3061.489952,0.00022058,2]
[343165819,1732393832643,-500.0,0.00022441,2]
[343165820,1732393832652,-500.0,0.00022441,2]
[343165821,1732393832662,-500.0,0.00022441,2]
[343165822,1732393832671,-526.89,0.00022441,2]
[343165823,1732393832681,-500.0,0.00022441,2]
[343165824,1732393832691,-564.18542816,0.00022441,2]
[343165825,1732393832700,-500.0,0.00022441,2]
[343165826,1732393832709,-490.45476969,0.00022441,2]
[343165827,1732393832721,-9.54523031,0.00022441,2]
[343165828,1732393832730,-500.0,0.00022441,2]
[343165829,1732393832740,-90.44581656,0.00022442,2]
[343165830,1732393832751,-305.54279403,0.00022442,2]
[343165831,1732393832760,-3000.0,0.00022442,2]
[343165832,1732393832769,-181.0,0.00022474,2]
[343165833,1732393832778,-292.23258743,0.00022602,2]
[343165834,1732393832787,-3061.489952,0.00022743,2]
[343165835,1732393832801,-152.0,0.00022755,2]
[343165836,1732393832810,-207.28236672,0.00022831,2]
[343165837,1732393832820,-242.56526486,0.00023,2]
[343165838,1732393832830,-194.99904237,0.00023063,2]
[343165839,1732393832840,-500.0,0.00023162,2]
[343165840,1732393832849,-578.45878998,0.00023162,2]
[343165841,1732393832859,-500.0,0.00023162,2]
[343165842,1732393832868,-1150.35,0.00023162,2]
[343165843,1732393832878,-500.0,0.00023162,2]
[343165844,1732393832887,-500.0,0.00023162,2]
[343165845,1732393832897,-500.0,0.00023162,2]
[343165846,1732393832907,-820.13,0.00023162,2]
[343165847,1732393832916,-500.0,0.00023162,2]
[343165848,1732393832926,-500.0,0.00023162,2]
[343165849,1732393832936,-500.0,0.00023162,2]
[343165850,1732393832946,-5000.0,0.00023162,2]
[343165851,1732393832955,-500.0,0.00023162,2]
[343165852,1732393832965,-500.0,0.00023162,2]
[343165853,1732393832974,-2037.574376,0.00023163,2]
[343165854,1732393832984,-405.51543236,0.000232,2]
[343165855,1732393832993,-1000.0,0.000232,2]
[343165856,1732393833003,-631.14235424,0.00023428,2]
[343165857,1732393833129,-3061.489952,0.00023428,2]
[343165858,1732393833139,-500.0,0.00023436,2]
[343165859,1732393833149,-500.0,0.00023436,2]
[343165860,1732393833159,-1150.35,0.00023436,2]
[343165861,1732393833169,-500.0,0.00023436,2]
[343165862,1732393833179,-820.13,0.00023436,2]
[343165863,1732393833189,-500.0,0.00023436,2]
[343165864,1732393833199,-500.0,0.00023436,2]
[343165865,1732393833208,-2037.574376,0.00023452,2]
[343165866,1732393833218,-263.11,0.00023627,2]
[343165867,1732393833228,-500.0,0.0002371,2]
[343165868,1732393833238,-500.0,0.0002371,2]
[343165869,1732393833248,-1150.35,0.0002371,2]
[343165870,1732393833258,-500.0,0.0002371,2]
[343165871,1732393833267,-820.13,0.0002371,2]
[343165872,1732393833277,-260.50880321,0.0002371,2]
[343165873,1732393833286,-500.0,0.0002371,2]
[343165874,1732393833300,-2037.574376,0.00023742,2]
[343165875,1732393833311,-171.05389248,0.00023873,2]
[343165876,1732393833321,-230.679,0.00023887,5]
[343165877,1732393833331,-643.7,0.00023912,3]
[343165878,1732393833341,-5000.0,0.00023921,2]
[343165879,1732393833351,-6186.01,0.00023922,2]
[343165880,1732393833361,-500.0,0.00023922,2]
[343165881,1732393833371,-500.0,0.00023922,2]
[343165882,1732393833381,-500.0,0.00023922,2]
[343165883,1732393833391,-500.0,0.00023922,2]
[343165884,1732393833401,-500.0,0.00023922,2]
[343165885,1732393833411,-500.0,0.00023922,2]
[343165886,1732393833421,-500.0,0.00023922,2]
[343165887,1732393833431,-500.0,0.00023922,2]
[343165888,1732393833441,-500.0,0.00023922,2]
[343165889,1732393833451,-500.0,0.00023922,2]
[343165890,1732393833461,-500.0,0.00023922,2]
[343165891,1732393833472,-500.0,0.00023922,2]
[343165892,1732393833485,-500.0,0.00023922,2]
[343165893,1732393833495,-1015.24,0.00023922,2]
[343165894,1732393833505,-500.0,0.00023922,2]
[343165895,1732393833515,-500.0,0.00023922,2]
[343165896,1732393833526,-500.0,0.00023922,2]
[343165897,1732393833535,-500.0,0.00023922,2]
[343165898,1732393833545,-500.0,0.00023922,2]
[343165899,1732393833559,-500.0,0.00023922,2]
[343165900,1732393833570,-500.0,0.00023922,2]
[343165901,1732393833579,-500.0,0.00023922,2]
[343165902,1732393833589,-188.78591782,0.00023922,2]
[343165903,1732393833599,-500.0,0.00023922,2]
[343165904,1732393833608,-500.0,0.00023922,2]
[343165905,1732393833618,-500.0,0.00023922,2]
[343165906,1732393833628,-550.69485387,0.00023922,2]
[343165907,1732393833638,-500.0,0.00023922,2]
[343165908,1732393833647,-500.0,0.00023922,2]
[343165909,1732393833658,-152.60671119,0.00023922,2]
[343165910,1732393833667,-183.59505514,0.00023922,2]
[343165911,1732393833677,-500.0,0.00023922,2]
[343165912,1732393833687,-500.0,0.00023922,2]
[343165913,1732393833697,-500.0,0.00023922,2]
[343165914,1732393833707,-500.0,0.00023922,2]
[343165915,1732393833717,-167.63384103,0.00023922,2]
[343165916,1732393833727,-500.0,0.00023922,2]
[343165917,1732393833736,-500.0,0.00023922,2]
[343165918,1732393833745,-500.0,0.00023922,2]
[343165919,1732393833755,-500.0,0.00023922,2]
[343165920,1732393833765,-500.0,0.00023922,2]
[343165921,1732393833775,-500.0,0.00023922,2]
[343165922,1732393833786,-436.56012968,0.00023922,2]
[343165923,1732393833795,-500.0,0.00023922,2]
[343165924,1732393833810,-500.0,0.00023922,2]
[343165925,1732393833819,-500.0,0.00023922,2]
[343165926,1732393833829,-500.0,0.00023922,2]
[343165927,1732393833840,-500.0,0.00023922,2]
[343165928,1732393833850,-500.0,0.00023922,2]
[343165929,1732393833860,-500.0,0.00023922,2]
[343165930,1732393833870,-500.0,0.00023922,2]
[343165931,1732393833880,-500.0,0.00023922,2]
[343165932,1732393833890,-500.0,0.00023922,2]
[343165933,1732393833899,-500.0,0.00023922,2]
[343165934,1732393833909,-500.0,0.00023922,2]
[343165935,1732393833919,-613.08936437,0.00023922,2]
[343165936,1732393833929,-500.0,0.00023922,2]
[343165937,1732393833939,-500.0,0.00023922,2]
[343165938,1732393833949,-597.26947538,0.00023922,2]
[343165939,1732393833959,-500.0,0.00023922,2]
[343165940,1732393833968,-500.0,0.00023922,2]
[343165941,1732393833978,-500.0,0.00023922,2]
[343165942,1732393833988,-500.0,0.00023922,2]
[343165943,1732393833998,-500.0,0.00023922,2]
[343165944,1732393834007,-500.0,0.00023922,2]
[343165945,1732393834017,-500.0,0.00023922,2]
[343165946,1732393834026,-500.0,0.00023922,2]
[343165947,1732393834036,-500.0,0.00023922,2]
[343165948,1732393834045,-500.0,0.00023922,2]
[343165949,1732393834061,-500.0,0.00023922,2]
[343165950,1732393834070,-500.0,0.00023922,2]
[343165951,1732393834079,-500.0,0.00023922,2]
[343165952,1732393834089,-500.0,0.00023922,2]
[343165953,1732393834098,-212.04872039,0.00023922,2]
[343165954,1732393834108,-500.0,0.00023922,2]
[343165955,1732393834117,-500.0,0.00023922,2]
[343165956,1732393834126,-500.0,0.00023922,2]
[343165957,1732393834136,-500.0,0.00023922,2]
[343165958,1732393834146,-500.0,0.00023922,2]
[343165959,1732393834156,-500.0,0.00023922,2]
[343165960,1732393834166,-500.0,0.00023922,2]
[343165961,1732393834175,-500.0,0.00023922,2]
[343165962,1732393834185,-500.0,0.00023922,2]
[343165963,1732393834195,-500.0,0.00023922,2]
[343165964,1732393834204,-500.0,0.00023922,2]
[343165965,1732393834214,-500.0,0.00023922,2]
[343165966,1732393834223,-500.0,0.00023922,2]
[343165967,1732393834232,-479.95857534,0.00023922,2]
[343165968,1732393834243,-500.0,0.00023922,2]
[343165969,1732393834252,-500.0,0.00023922,2]
[343165970,1732393834261,-500.0,0.00023922,2]
[343165971,1732393834271,-500.0,0.00023922,2]
[343165972,1732393834280,-500.0,0.00023922,2]
[343165973,1732393834289,-500.0,0.00023922,2]
[343165974,1732393834302,-442.21761948,0.00023922,2]
[343165975,1732393834313,-500.0,0.00023922,2]
[343165976,1732393834322,-500.0,0.00023922,2]
[343165977,1732393834333,-500.0,0.00023922,2]
[343165978,1732393834342,-450.2966301,0.00023922,2]
[343165979,1732393834351,-500.0,0.00023922,2]
[343165980,1732393834361,-500.0,0.00023922,2]
[343165981,1732393834371,-535.9,0.00023922,2]
[343165982,1732393834380,-504.17400491,0.00023922,2]
[343165983,1732393834390,-500.0,0.00023922,2]
[343165984,1732393834400,-848.11,0.00023922,2]
[343165985,1732393834410,-500.0,0.00023922,2]
[343165986,1732393834420,-5000.0,0.00023922,2]
[343165987,1732393834429,-5000.0,0.00023922,2]
[343165988,1732393834439,-5000.0,0.00023922,2]
[343165989,1732393834449,-5000.0,0.00023922,2]
[343165990,1732393834459,-500.0,0.00023922,2]
[343165991,1732393834468,-500.0,0.00023922,2]
[343165992,1732393834478,-500.0,0.00023922,2]
[343165993,1732393834488,-500.0,0.00023922,2]
[343165994,1732393834501,-500.0,0.00023922,2]
[343165995,1732393834511,-500.0,0.00023923,2]
[343165996,1732393834520,-500.0,0.00023923,2]
[343165997,1732393834530,-500.0,0.00023923,2]
[343165998,1732393834539,-500.0,0.00023923,2]
[343165999,1732393834553,-500.0,0.00023923,2]
[343166000,1732393834564,-532.82350505,0.00023923,2]
[343166001,1732393834573,-500.0,0.00023923,2]
[343166002,1732393834583,-500.0,0.00023923,2]
[343166003,1732393834592,-500.0,0.00023923,2]
[343166004,1732393834602,-500.0,0.00023923,2]
[343166005,1732393834611,-500.95442235,0.00023923,2]
[343166006,1732393834620,-500.0,0.00023923,2]
[343166007,1732393834632,-500.0,0.00023923,2]
[343166008,1732393834641,-506.70999776,0.00023923,2]
[343166009,1732393834651,-500.0,0.00023923,2]
[343166010,1732393834660,-500.0,0.00023923,2]
[343166011,1732393834670,-163.82903242,0.00023923,2]
[343166012,1732393834680,-500.0,0.00023923,2]
[343166013,1732393834689,-500.0,0.00023923,2]
[343166014,1732393834698,-500.0,0.00023923,2]
[343166015,1732393834707,-500.0,0.00023923,2]
[343166016,1732393834717,-500.0,0.00023923,2]
[343166017,1732393834726,-500.0,0.00023923,2]
[343166018,1732393834736,-500.0,0.00023923,2]
[343166019,1732393834746,-500.0,0.00023923,2]
[343166020,1732393834755,-500.0,0.00023923,2]
[343166021,1732393834765,-500.0,0.00023923,2]
[343166022,1732393834775,-500.0,0.00023923,2]
[343166023,1732393834784,-500.0,0.00023923,2]
[343166024,1732393834795,-500.0,0.00023923,2]
[343166025,1732393834808,-500.0,0.00023923,2]
[343166026,1732393834818,-500.0,0.00023923,2]
[343166027,1732393834827,-500.0,0.00023923,2]
[343166028,1732393834837,-500.0,0.00023923,2]
[343166029,1732393834846,-500.0,0.00023923,2]
[343166030,1732393834856,-500.0,0.00023923,2]
[343166031,1732393834866,-500.0,0.00023923,2]
[343166032,1732393834875,-500.0,0.00023923,2]
[343166033,1732393834885,-279.64973014,0.00023923,2]
[343166034,1732393834895,-500.0,0.00023923,2]
[343166035,1732393834905,-500.0,0.00023923,2]
[343166036,1732393834915,-500.0,0.00023923,2]
[343166037,1732393834924,-500.0,0.00023923,2]
[343166038,1732393834934,-512.41482507,0.00023923,2]
[343166039,1732393834944,-500.0,0.00023923,2]
[343166040,1732393834954,-500.0,0.00023923,2]
[343166041,1732393834964,-948.03,0.00023923,2]
[343166042,1732393834974,-500.0,0.00023923,2]
[343166043,1732393834984,-500.0,0.00023923,2]
[343166044,1732393834994,-516.60617047,0.00023923,2]
[343166045,1732393835004,-500.0,0.00023923,2]
[343166046,1732393835014,-500.80737839,0.00023923,2]
[343166047,1732393835024,-500.0,0.00023923,2]
[343166048,1732393835035,-500.0,0.00023923,2]
[343166049,1732393835046,-500.0,0.00023923,2]
[343166050,1732393835059,-500.0,0.00023923,2]
[343166051,1732393835070,-500.0,0.00023923,2]
[343166052,1732393835079,-500.0,0.00023923,2]
[343166053,1732393835089,-500.0,0.00023923,2]
[343166054,1732393835099,-518.02117604,0.00023923,2]
[343166055,1732393835109,-579.47037261,0.00023923,2]
[343166056,1732393835119,-500.0,0.00023923,2]
[343166057,1732393835129,-500.0,0.00023923,2]
[343166058,1732393835139,-500.0,0.00023923,2]
[343166059,1732393835149,-500.0,0.00023923,2]
[343166060,1732393835159,-500.0,0.00023923,2]
[343166061,1732393835169,-500.0,0.00023923,2]
[343166062,1732393835178,-500.0,0.00023923,2]
[343166063,1732393835187,-500.0,0.00023923,2]
[343166064,1732393835197,-500.0,0.00023923,2]
[343166065,1732393835206,-500.0,0.00023923,2]
[343166066,1732393835216,-172.74230675,0.00023923,2]
[343166067,1732393835225,-235.39121795,0.00023923,2]
[343166068,1732393835234,-500.0,0.00023923,2]
[343166069,1732393835244,-500.0,0.00023923,2]
[343166070,1732393835254,-500.0,0.00023923,2]
[343166071,1732393835263,-500.0,0.00023923,2]
[343166072,1732393835273,-523.27055632,0.00023923,2]
[343166073,1732393835283,-500.0,0.00023923,2]
[343166074,1732393835292,-500.0,0.00023923,2]
[343166075,1732393835304,-500.0,0.00023923,2]
[343166076,1732393835316,-500.0,0.00023923,2]
[343166077,1732393835404,-386.99476758,0.00023923,2]
[343166078,1732393835414,-500.0,0.00023923,2]
[343166079,1732393835424,-500.0,0.00023923,2]
[343166080,1732393835435,-500.0,0.00023923,2]
[343166081,1732393835446,-500.0,0.00023923,2]
[343166082,1732393835456,-500.0,0.00023923,2]
[343166083,1732393835467,-500.0,0.00023923,2]
[343166084,1732393835480,-500.0,0.00023923,2]
[343166085,1732393835489,-500.0,0.00023923,2]
[343166086,1732393835499,-1160.99,0.00023923,2]
[343166087,1732393835508,-500.0,0.00023923,2]
[343166088,1732393835517,-500.0,0.00023923,2]
[343166089,1732393835529,-500.0,0.00023923,2]
[343166090,1732393835538,-500.0,0.00023923,2]
[343166091,1732393835548,-500.0,0.00023923,2]
[343166092,1732393835561,-500.0,0.00023923,2]
[343166093,1732393835572,-500.0,0.00023923,2]
[343166094,1732393835583,-500.0,0.00023923,2]
[343166095,1732393835592,-500.0,0.00023923,2]
[343166096,1732393835602,-624.34,0.00023923,2]
[343166097,1732393835612,-500.0,0.00023923,2]
[343166098,1732393835622,-500.0,0.00023923,2]
[343166099,1732393835631,-500.0,0.00023923,2]
[343166100,1732393835643,-500.0,0.00023923,2]
[343166101,1732393835653,-500.0,0.00023923,2]
[343166102,1732393835663,-500.0,0.00023923,2]
[343166103,1732393835672,-500.0,0.00023923,2]
[343166104,1732393835682,-500.0,0.00023923,2]
[343166105,1732393835691,-500.0,0.00023923,2]
[343166106,1732393835701,-500.0,0.00023923,2]
[343166107,1732393835711,-522.24677589,0.00023923,2]
[343166108,1732393835721,-500.0,0.00023923,2]
[343166109,1732393835731,-500.0,0.00023923,2]
[343166110,1732393835740,-515.28041494,0.00023923,2]
[343166111,1732393835750,-500.0,0.00023923,2]
[343166112,1732393835760,-500.0,0.00023923,2]
[343166113,1732393835770,-500.0,0.00023923,2]
[343166114,1732393835778,-500.0,0.00023923,2]
[343166115,1732393835788,-500.0,0.00023923,2]
[343166116,1732393835798,-500.0,0.00023923,2]
[343166117,1732393835810,-500.0,0.00023923,2]
[343166118,1732393835819,-500.0,0.00023923,2]
[343166119,1732393835829,-500.0,0.00023923,2]
[343166120,1732393835839,-500.0,0.00023923,2]
[343166121,1732393835848,-500.0,0.00023923,2]
[343166122,1732393835858,-500.0,0.00023923,2]
[343166123,1732393835867,-500.0,0.00023923,2]
[343166124,1732393835877,-500.0,0.00023923,2]
[343166125,1732393835886,-500.0,0.00023923,2]
[343166126,1732393835896,-500.0,0.00023923,2]
[343166127,1732393835906,-500.0,0.00023923,2]
[343166128,1732393835915,-500.0,0.00023923,2]
[343166129,1732393835926,-500.0,0.00023923,2]
[343166130,1732393835936,-500.0,0.00023923,2]
[343166131,1732393835945,-322.1934404,0.00023923,2]
[343166132,1732393835955,-500.0,0.00023923,2]
[343166133,1732393835965,-500.0,0.00023923,2]
[343166134,1732393835974,-500.0,0.00023923,2]
[343166135,1732393835984,-500.0,0.00023923,2]
[343166136,1732393835993,-5000.0,0.00023923,2]
[343166137,1732393836003,-500.0,0.00023923,2]
[343166138,1732393836012,-500.0,0.00023923,2]
[343166139,1732393836022,-500.0,0.00023923,2]
[343166140,1732393836032,-420.0,0.00023936,2]
[343166141,1732393836041,-4501.56743276,0.0002397,2]
[343166142,1732393836055,-500.0,0.00023973,2]
[343166143,1732393836065,-500.0,0.00023973,2]
[343166144,1732393836075,-500.0,0.00023973,2]
[343166145,1732393836084,-278.51606668,0.00023973,2]
[343166146,1732393836093,-200.0,0.00023973,2]
[343166147,1732393836103,-500.0,0.00023973,2]
[343166148,1732393836113,-500.0,0.00023973,2]
[343166149,1732393836122,-500.0,0.00023973,2]
[343166150,1732393836132,-232.4,0.00023984,2]
[343166151,1732393836142,-500.0,0.00023984,2]
[343166152,1732393836151,-1150.35,0.00023984,2]
[343166153,1732393836161,-500.0,0.00023984,2]
[343166154,1732393836171,-820.13,0.00023984,2]
[343166155,1732393836181,-500.0,0.00023984,2]
[343166156,1732393836191,-2037.574376,0.00024031,2]
[343166157,1732393836201,-500.0,0.00024196,2]
[343166158,1732393836210,-500.0,0.00024196,2]
[343166159,1732393836220,-500.0,0.00024196,2]
[343166160,1732393836230,-500.0,0.00024196,2]
[343166161,1732393836239,-594.6042921,0.00024196,2]
[343166162,1732393836248,-500.0,0.00024196,2]
[343166163,1732393836258,-500.0,0.00024196,2]
[343166164,1732393836268,-500.0,0.00024196,2]
[343166165,1732393836278,-500.0,0.00024196,2]
[343166166,1732393836288,-500.0,0.00024196,2]
[343166167,1732393836298,-500.0,0.00024196,2]
[343166168,1732393836312,-500.0,0.00024196,2]
[343166169,1732393836323,-500.0,0.00024196,2]
[343166170,1732393836332,-500.0,0.00024196,2]
[343166171,1732393836342,-500.0,0.00024196,2]
[343166172,1732393836351,-500.0,0.00024196,2]
[343166173,1732393836361,-500.0,0.00024196,2]
[343166174,1732393836371,-500.0,0.00024196,2]
[343166175,1732393836381,-500.0,0.00024196,2]
[343166176,1732393836391,-500.0,0.00024196,2]
[343166177,1732393836400,-500.0,0.00024196,2]
[343166178,1732393836410,-500.0,0.00024196,2]
[343166179,1732393836420,-500.0,0.00024196,2]
[343166180,1732393836429,-500.0,0.00024196,2]
[343166181,1732393836439,-500.0,0.00024196,2]
[343166182,1732393836449,-500.0,0.00024196,2]
[343166183,1732393836459,-6186.01,0.00024196,2]
[343166184,1732393836470,-500.0,0.00024196,2]
[343166185,1732393836485,-500.0,0.00024196,2]
[343166186,1732393836495,-500.0,0.00024196,2]
[343166187,1732393836504,-500.0,0.00024196,2]
[343166188,1732393836515,-500.0,0.00024196,2]
[343166189,1732393836527,-322.42989448,0.00024196,2]
[343166190,1732393836536,-500.0,0.00024196,2]
[343166191,1732393836546,-1160.99,0.00024196,2]
[343166192,1732393836561,-500.0,0.00024196,2]
[343166193,1732393836574,-500.0,0.00024196,2]
[343166194,1732393836583,-624.34,0.00024196,2]
[343166195,1732393836593,-500.0,0.00024196,2]
[343166196,1732393836603,-500.0,0.00024196,2]
[343166197,1732393836613,-500.0,0.00024196,2]
[343166198,1732393836623,-500.0,0.00024196,2]
[343166199,1732393836633,-500.0,0.00024196,2]
[343166200,1732393836643,-500.0,0.00024196,2]
[343166201,1732393836653,-500.0,0.00024196,2]
[343166202,1732393836663,-500.0,0.00024196,2]
[343166203,1732393836673,-500.0,0.00024196,2]
[343166204,1732393836684,-1015.24,0.00024196,2]
[343166205,1732393836695,-500.0,0.00024196,2]
[343166206,1732393836704,-500.0,0.00024196,2]
[343166207,1732393836715,-500.0,0.00024196,2]
[343166208,1732393836725,-500.0,0.00024196,2]
[343166209,1732393836735,-500.0,0.00024196,2]
[343166210,1732393836745,-500.0,0.00024196,2]
[343166211,1732393836754,-500.0,0.00024196,2]
[343166212,1732393836763,-848.11,0.00024196,2]
[343166213,1732393836773,-500.0,0.00024196,2]
[343166214,1732393836782,-500.0,0.00024196,2]
[343166215,1732393836792,-500.0,0.00024196,2]
[343166216,1732393836804,-500.0,0.00024196,2]
[343166217,1732393836813,-500.0,0.00024196,2]
[343166218,1732393836822,-500.0,0.00024196,2]
[343166219,1732393836833,-500.0,0.00024258,2]
[343166220,1732393836843,-1150.35,0.00024258,2]
[343166221,1732393836852,-500.0,0.00024258,2]
[343166222,1732393836862,-820.13,0.00024258,2]
[343166223,1732393836872,-500.0,0.00024258,2]
[343166224,1732393836882,-500.0,0.0002432,2]
[343166225,1732393836892,-948.03,0.0002432,2]
[343166226,1732393836902,-500.0,0.0002432,2]
[343166227,1732393836911,-500.0,0.0002432,2]
[343166228,1732393836921,-500.0,0.0002432,2]
[343166229,1732393836930,-2037.574376,0.00024321,2]
[343166230,1732393836940,-500.0,0.0002447,2]
[343166231,1732393836949,-500.0,0.0002447,2]
[343166232,1732393836959,-500.0,0.0002447,2]
[343166233,1732393836968,-500.0,0.0002447,2]
[343166234,1732393836978,-500.0,0.0002447,2]
[343166235,1732393836987,-500.0,0.0002447,2]
[343166236,1732393836997,-328.13,0.0002447,2]
[343166237,1732393837006,-500.0,0.0002447,2]
[343166238,1732393837016,-500.0,0.0002447,2]
[343166239,1732393837025,-500.0,0.0002447,2]